[Event "Championnat d'Europe Rapide"]
[Date "2024.12.07"]
[White "Spirliadis, Achileas"]
[Black "Pacher, Milan"]
[WhiteElo "2135"]
[BlackElo "2310"]
[Round "3.52"]
[Result "0-1"]
[TimeControl "900+10"]

1. e4 {[%emt 00:00:32] [%clk 00:14:47]} c5 {[%emt 00:00:02] [%clk 00:15:18]} 2.
c4 {[%emt 00:00:02] [%clk 00:14:55]} Nc6 {[%emt 00:00:02] [%clk 00:15:26]} 3. d3
{[%emt 00:00:02] [%clk 00:15:03]} e6 {[%emt 00:00:07] [%clk 00:15:29]} 4. Nc3
{[%emt 00:00:02] [%clk 00:15:11]} Nge7 {[%emt 00:00:04] [%clk 00:15:34]} 5. g3
{[%emt 00:00:02] [%clk 00:15:19]} d5 {[%emt 00:00:05] [%clk 00:15:39]} 6. exd5
{[%emt 00:00:13] [%clk 00:15:17]} exd5 {[%emt 00:00:02] [%clk 00:15:47]} 7. Bg2
{[%emt 00:00:05] [%clk 00:15:23]} dxc4 {[%emt 00:00:11] [%clk 00:15:46]} 8. dxc4
{[%emt 00:00:03] [%clk 00:15:31]} Qxd1+ {[%emt 00:00:03] [%clk 00:15:52]} 9.
Kxd1 {[%emt 00:00:26] [%clk 00:15:14]} Be6 {[%emt 00:00:14] [%clk 00:15:49]} 10.
Be3 {[%emt 00:01:28] [%clk 00:13:56]} O-O-O+ {[%emt 00:00:10] [%clk 00:15:48]}
11. Kc1 {[%emt 00:01:07] [%clk 00:13:00]} Nb4 {[%emt 00:01:02] [%clk 00:14:56]}
12. b3 {[%emt 00:02:11] [%clk 00:10:59]} Nf5 {[%emt 00:00:05] [%clk 00:15:01]}
13. Nge2 {[%emt 00:00:32] [%clk 00:10:38]} Nxe3 {[%emt 00:01:03] [%clk
00:14:08]} 14. fxe3 {[%emt 00:00:02] [%clk 00:10:46]} g6 {[%emt 00:00:10] [%clk
00:14:07]} 15. a3 {[%emt 00:00:42] [%clk 00:10:15]} Nd3+ {[%emt 00:00:02] [%clk
00:14:14]} 16. Kc2 {[%emt 00:00:02] [%clk 00:10:23]} Nf2 {[%emt 00:00:13] [%clk
00:14:11]} 17. Rhe1 {[%emt 00:00:21] [%clk 00:10:12]} Bg7 {[%emt 00:00:42] [%clk
00:13:39]} 18. Nf4 {[%emt 00:00:26] [%clk 00:09:55]} Rhe8 {[%emt 00:00:55] [%clk
00:12:54]} 19. Nxe6 {[%emt 00:01:00] [%clk 00:09:05]} Rxe6 {[%emt 00:00:04]
[%clk 00:12:59]} 20. Re2 {[%emt 00:01:13] [%clk 00:08:03]} Bxc3 {[%emt 00:00:10]
[%clk 00:12:58]} 21. Rf1 {[%emt 00:01:27] [%clk 00:06:46]} Ng4 {[%emt 00:03:33]
[%clk 00:09:36]} 22. Bh3 {[%emt 00:02:23] [%clk 00:04:33]} h5 {[%emt 00:00:06]
[%clk 00:09:39]} 23. Kxc3 {[%emt 00:00:32] [%clk 00:04:12]} f5 {[%emt 00:00:02]
[%clk 00:09:47]} 24. Bxg4 {[%emt 00:00:59] [%clk 00:03:23]} hxg4 {[%emt
00:00:02] [%clk 00:09:55]} 25. Rf4 {[%emt 00:01:58] [%clk 00:01:35]} a5 {[%emt
00:00:50] [%clk 00:09:14]} 26. h3 {[%emt 00:00:08] [%clk 00:01:37]} gxh3 {[%emt
00:00:07] [%clk 00:09:17]} 27. Rh4 {[%emt 00:00:02] [%clk 00:01:45]} Red6 {[%emt
00:02:12] [%clk 00:07:15]} 28. a4 {[%emt 00:00:53] [%clk 00:01:03]} Rd1 {[%emt
00:00:10] [%clk 00:07:14]} 29. Rxh3 {[%emt 00:00:12] [%clk 00:01:01]} Rc1+
{[%emt 00:00:03] [%clk 00:07:21]} 30. Kb2 {[%emt 00:00:16] [%clk 00:00:56]} Rg1
{[%emt 00:00:05] [%clk 00:07:26]} 31. Kc2 {[%emt 00:00:21] [%clk 00:00:45]} b6
{[%emt 00:00:32] [%clk 00:07:04]} 32. e4 {[%emt 00:00:33] [%clk 00:00:22]} Re8
{[%emt 00:00:30] [%clk 00:06:44]} 33. e5 {[%emt 00:00:15] [%clk 00:00:18]} Kd7
{[%emt 00:00:04] [%clk 00:06:49]} 34. Rh7+ {[%emt 00:00:10] [%clk 00:00:19]} Kc6
{[%emt 00:00:22] [%clk 00:06:37]} 35. Re3 {[%emt 00:00:02] [%clk 00:00:27]} Re6
{[%emt 00:00:25] [%clk 00:06:21]} 36. Rg7 {[%emt 00:00:14] [%clk 00:00:23]} Rh1
{[%emt 00:00:36] [%clk 00:05:55]} 37. Rd3 {[%emt 00:00:04] [%clk 00:00:29]} Rh2+
{[%emt 00:00:14] [%clk 00:05:50]} 38. Kc3 {[%emt 00:00:02] [%clk 00:00:37]} Re2
{[%emt 00:01:22]} 39. Rdd7 {[%clk 00:00:12]} R6xe5 {[%emt 00:00:11] [%clk
00:05:12]} 40. Rc7+ {[%emt 00:00:06] [%clk 00:00:16]} Kd6 {[%emt 00:00:01] [%clk
00:05:20]} 41. Rgd7+ {[%emt 00:00:03] [%clk 00:00:23]} Ke6 {[%emt 00:00:02]
[%clk 00:05:28]} 42. Re7+ {[%emt 00:00:10] [%clk 00:00:23]} Kf6 {[%emt 00:00:01]
[%clk 00:05:37]} 43. Rxe5 {[%emt 00:00:07] [%clk 00:00:27]} Rxe5 {[%emt
00:00:02] [%clk 00:05:44]} 44. Kd3 {[%emt 00:00:05] [%clk 00:00:32]} Re6 {[%emt
00:00:16] [%clk 00:05:38]} 45. Rh7 {[%emt 00:00:27] [%clk 00:00:15]} Kg5 {[%emt
00:00:04] [%clk 00:05:44]} 46. Rh1 {[%emt 00:00:02] [%clk 00:00:24]} Kg4 {[%emt
00:00:06] [%clk 00:05:47]} 47. Rg1 {[%emt 00:00:02] [%clk 00:00:33]} Kf3 {[%emt
00:00:11] [%clk 00:05:46]} 48. Kd2 {[%emt 00:00:03] [%clk 00:00:41]} Kf2 {[%emt
00:00:07] [%clk 00:05:49]} 0-1

[Site "Europe Echecs"]

[Event "Championnat d'Europe Rapide"]
[Date "2024.12.07"]
[White "Bognar, Csaba Dr."]
[Black "Narva, Mai"]
[WhiteElo "2067"]
[BlackElo "2413"]
[Round "3.53"]
[Result "1/2-1/2"]
[TimeControl "900+10"]

1. d4 {[%emt 00:00:03] [%clk 00:15:18]} Nf6 {[%emt 00:00:02] [%clk 00:15:16]} 2.
c4 {[%emt 00:00:02] [%clk 00:15:25]} g6 {[%emt 00:00:03] [%clk 00:15:23]} 3. Nc3
{[%emt 00:00:02] [%clk 00:15:32]} Bg7 {[%emt 00:00:03] [%clk 00:15:31]} 4. e4
{[%emt 00:00:02] [%clk 00:15:40]} d6 {[%emt 00:00:02] [%clk 00:15:38]} 5. f3
{[%emt 00:00:05] [%clk 00:15:46]} O-O {[%emt 00:00:06] [%clk 00:15:42]} 6. Be3
{[%emt 00:00:02] [%clk 00:15:54]} a6 {[%emt 00:00:09] [%clk 00:15:43]} 7. Qd2
{[%emt 00:00:10] [%clk 00:15:54]} c5 {[%emt 00:00:35] [%clk 00:15:19]} 8. Nge2
{[%emt 00:00:06] [%clk 00:15:57]} cxd4 {[%emt 00:00:49] [%clk 00:14:41]} 9. Nxd4
{[%emt 00:00:03] [%clk 00:16:04]} Nc6 {[%emt 00:00:08] [%clk 00:14:43]} 10. Be2
{[%emt 00:00:05] [%clk 00:16:09]} Bd7 {[%emt 00:00:36] [%clk 00:14:16]} 11. O-O
{[%emt 00:00:03] [%clk 00:16:16]} Rc8 {[%emt 00:00:18] [%clk 00:14:09]} 12. Rfd1
{[%emt 00:00:15] [%clk 00:16:10]} Nxd4 {[%emt 00:00:48] [%clk 00:13:32]} 13.
Bxd4 {[%emt 00:00:04] [%clk 00:16:16]} Bc6 {[%emt 00:00:10] [%clk 00:13:32]} 14.
Rac1 {[%emt 00:00:09] [%clk 00:16:16]} Nd7 {[%emt 00:03:18] [%clk 00:10:24]} 15.
Be3 {[%emt 00:02:07] [%clk 00:15:32]} 1/2-1/2

[Site "Europe Echecs"]

[Event "Championnat d'Europe Rapide"]
[Date "2024.12.07"]
[White "Herega, Nejc"]
[Black "Stanojoski, Zvonko"]
[WhiteElo "2249"]
[BlackElo "2401"]
[Round "3.54"]
[Result "0-1"]
[TimeControl "900+10"]

1. d4 {[%emt 00:00:04] [%clk 00:15:16]} d5 {[%emt 00:00:05] [%clk 00:15:15]} 2.
Nf3 {[%emt 00:00:04] [%clk 00:15:21]} e6 {[%emt 00:00:03] [%clk 00:15:22]} 3.
Bf4 {[%emt 00:00:06] [%clk 00:15:25]} Nf6 {[%emt 00:00:08] [%clk 00:15:25]} 4.
e3 {[%emt 00:00:05] [%clk 00:15:30]} Bd6 {[%emt 00:00:03] [%clk 00:15:32]} 5.
Nbd2 {[%emt 00:00:09] [%clk 00:15:30]} O-O {[%emt 00:00:07] [%clk 00:15:36]} 6.
c3 {[%emt 00:00:13] [%clk 00:15:27]} c5 {[%emt 00:00:08] [%clk 00:15:39]} 7. Bd3
{[%emt 00:00:28] [%clk 00:15:08]} cxd4 {[%emt 00:00:12] [%clk 00:15:38]} 8. Bxd6
{[%emt 00:00:47] [%clk 00:14:31]} Qxd6 {[%emt 00:00:09] [%clk 00:15:39]} 9. cxd4
{[%emt 00:00:19] [%clk 00:14:21]} Nc6 {[%emt 00:00:35] [%clk 00:15:14]} 10. a3
{[%emt 00:00:43] [%clk 00:13:48]} e5 {[%emt 00:01:01] [%clk 00:14:23]} 11. dxe5
{[%emt 00:00:54] [%clk 00:13:03]} Nxe5 {[%emt 00:00:02] [%clk 00:14:31]} 12. Be2
{[%emt 00:00:09] [%clk 00:13:04]} Nc6 {[%emt 00:03:02] [%clk 00:11:40]} 13. O-O
{[%emt 00:01:09] [%clk 00:12:06]} Bg4 {[%emt 00:00:10] [%clk 00:11:40]} 14. h3
{[%emt 00:01:07] [%clk 00:11:09]} Bh5 {[%emt 00:00:06] [%clk 00:11:44]} 15. Nb3
{[%emt 00:00:40] [%clk 00:10:39]} Rad8 {[%emt 00:00:18] [%clk 00:11:36]} 16.
Nbd4 {[%emt 00:00:35] [%clk 00:10:14]} Ne7 {[%emt 00:00:13] [%clk 00:11:33]} 17.
Qb3 {[%emt 00:00:32] [%clk 00:09:51]} b6 {[%emt 00:00:10] [%clk 00:11:33]} 18.
Rac1 {[%emt 00:00:27] [%clk 00:09:33]} Ne4 {[%emt 00:00:11] [%clk 00:11:33]} 19.
Rfd1 {[%emt 00:01:01] [%clk 00:08:42]} Rc8 {[%emt 00:01:33] [%clk 00:10:10]} 20.
Nb5 {[%emt 00:01:20] [%clk 00:07:32]} Qb8 {[%emt 00:00:15] [%clk 00:10:05]} 21.
Nc3 {[%emt 00:00:09] [%clk 00:07:33]} Nc5 {[%emt 00:00:53] [%clk 00:09:23]} 22.
Qb4 {[%emt 00:00:50] [%clk 00:06:53]} Qb7 {[%emt 00:01:28] [%clk 00:08:05]} 23.
a4 {[%emt 00:00:44] [%clk 00:06:19]} Bg6 {[%emt 00:00:21] [%clk 00:07:53]} 24.
Qa3 {[%emt 00:00:33] [%clk 00:05:56]} Rfd8 {[%emt 00:00:19] [%clk 00:07:43]} 25.
b4 {[%emt 00:01:18] [%clk 00:04:49]} Ne6 {[%emt 00:00:22] [%clk 00:07:31]} 26.
Nb5 {[%emt 00:00:34] [%clk 00:04:26]} Nc6 {[%emt 00:03:36] [%clk 00:04:04]} 27.
Nbd4 {[%emt 00:01:08] [%clk 00:03:27]} Nexd4 {[%emt 00:00:28] [%clk 00:03:47]}
28. Nxd4 {[%emt 00:00:09] [%clk 00:03:28]} Ne5 {[%emt 00:00:07] [%clk 00:03:50]}
29. a5 {[%emt 00:01:15] [%clk 00:02:23]} Nc4 {[%emt 00:00:14] [%clk 00:03:45]}
30. Qa1 {[%emt 00:00:15] [%clk 00:02:19]} b5 {[%emt 00:00:15] [%clk 00:03:40]}
31. Nb3 {[%emt 00:00:25] [%clk 00:02:04]} Qe7 {[%emt 00:00:04] [%clk 00:03:46]}
32. Nc5 {[%emt 00:00:33] [%clk 00:01:41]} Nxe3 {[%emt 00:00:19] [%clk 00:03:36]}
33. fxe3 {[%emt 00:00:46] [%clk 00:01:05]} Qxe3+ {[%emt 00:00:02] [%clk
00:03:45]} 34. Kf1 {[%clk 00:01:14]} d4 {[%emt 00:01:01] [%clk 00:02:54]} 35.
Nd3 {[%emt 00:00:50] [%clk 00:00:35]} Re8 {[%emt 00:00:12] [%clk 00:02:53]} 36.
Qb2 {[%emt 00:00:20] [%clk 00:00:25]} Rc3 {[%emt 00:00:46] [%clk 00:02:17]} 37.
Nf2 {[%emt 00:00:20] [%clk 00:00:14]} Rxc1 {[%emt 00:00:18] [%clk 00:02:10]} 38.
Rxc1 {[%emt 00:00:07] [%clk 00:00:18]} d3 {[%emt 00:00:01] [%clk 00:02:19]} 0-1

[Site "Europe Echecs"]

[Event "Championnat d'Europe Rapide"]
[Date "2024.12.07"]
[White "Navara, David"]
[Black "Alonso Rosell, Alvar"]
[WhiteElo "2665"]
[BlackElo "2532"]
[Round "4.1"]
[Result "1-0"]
[TimeControl "900+10"]

1. e4 {[%clk 00:15:19]} e5 {[%emt 00:00:02] [%clk 00:15:18]} 2. Nf3 {[%emt
00:00:02] [%clk 00:15:27]} Nc6 {[%clk 00:15:27]} 3. Bb5 {[%emt 00:00:03] [%clk
00:15:35]} a6 {[%emt 00:00:04] [%clk 00:15:33]} 4. Ba4 {[%emt 00:00:02] [%clk
00:15:44]} Nf6 {[%emt 00:00:08] [%clk 00:15:35]} 5. O-O {[%emt 00:00:11] [%clk
00:15:42]} d6 {[%emt 00:00:09] [%clk 00:15:37]} 6. c3 {[%emt 00:02:18] [%clk
00:13:33]} Bd7 {[%emt 00:00:41] [%clk 00:15:06]} 7. Re1 {[%emt 00:00:25] [%clk
00:13:18]} g6 {[%emt 00:00:05] [%clk 00:15:11]} 8. d4 {[%emt 00:00:07] [%clk
00:13:22]} Bg7 {[%emt 00:00:02] [%clk 00:15:18]} 9. h3 {[%emt 00:00:04] [%clk
00:13:27]} O-O {[%emt 00:00:05] [%clk 00:15:23]} 10. Bc2 {[%emt 00:00:07] [%clk
00:13:31]} Nh5 {[%emt 00:00:53] [%clk 00:14:40]} 11. a4 {[%emt 00:00:18] [%clk
00:13:23]} Kh8 {[%emt 00:00:48] [%clk 00:14:03]} 12. Na3 {[%emt 00:00:27] [%clk
00:13:05]} Qe8 {[%emt 00:02:47] [%clk 00:11:25]} 13. Nc4 {[%emt 00:00:50] [%clk
00:12:26]} Rd8 {[%emt 00:02:18] [%clk 00:09:18]} 14. Be3 {[%emt 00:01:17] [%clk
00:11:18]} b6 {[%emt 00:02:17] [%clk 00:07:11]} 15. Qe2 {[%emt 00:01:25] [%clk
00:10:03]} exd4 {[%emt 00:00:37] [%clk 00:06:44]} 16. Nxd4 {[%emt 00:02:27]
[%clk 00:07:46]} Qe7 {[%emt 00:00:11] [%clk 00:06:43]} 17. Nf5 {[%emt 00:01:48]
[%clk 00:06:09]} Bxf5 {[%emt 00:00:24] [%clk 00:06:28]} 18. exf5 {[%emt
00:00:02] [%clk 00:06:17]} d5 {[%emt 00:00:32] [%clk 00:06:07]} 19. Qf3 {[%emt
00:00:45] [%clk 00:05:42]} Qh4 {[%emt 00:00:59] [%clk 00:05:17]} 20. g4 {[%emt
00:01:53] [%clk 00:03:59]} Nf6 {[%emt 00:00:12] [%clk 00:05:15]} 21. Kg2 {[%emt
00:00:25] [%clk 00:03:44]} h6 {[%emt 00:01:57] [%clk 00:03:29]} 22. Bf4 {[%emt
00:01:45] [%clk 00:02:09]} Nh7 {[%emt 00:00:32] [%clk 00:03:07]} 23. Bxc7 {[%emt
00:01:13] [%clk 00:01:05]} Ng5 {[%emt 00:00:16] [%clk 00:03:01]} 24. Bxd8 {[%emt
00:00:09] [%clk 00:01:07]} Rxd8 {[%emt 00:00:30] [%clk 00:02:41]} 25. Qg3 {[%emt
00:00:01] [%clk 00:01:15]} Qxg3+ {[%emt 00:00:03] [%clk 00:02:48]} 26. Kxg3
{[%emt 00:00:04] [%clk 00:01:21]} dxc4 {[%emt 00:00:05] [%clk 00:02:53]} 27. f4
{[%emt 00:00:06] [%clk 00:01:24]} Rd2 {[%emt 00:00:56] [%clk 00:02:08]} 28. Re8+
{[%emt 00:00:32] [%clk 00:01:02]} Kh7 {[%emt 00:00:11] [%clk 00:02:07]} 29. Rc1
{[%emt 00:00:01] [%clk 00:01:11]} b5 {[%emt 00:00:41] [%clk 00:01:36]} 30. fxg5
{[%emt 00:00:35] [%clk 00:00:46]} hxg5 {[%emt 00:00:03] [%clk 00:01:44]} 31.
fxg6+ {[%emt 00:00:18] [%clk 00:00:38]} fxg6 {[%emt 00:00:01] [%clk 00:01:52]}
32. Bxg6+ {[%emt 00:00:02] [%clk 00:00:45]} Kxg6 {[%emt 00:00:57] [%clk
00:01:06]} 33. Re6+ {[%emt 00:00:01] [%clk 00:00:53]} Kf7 {[%emt 00:00:20] [%clk
00:00:57]} 34. Rxc6 {[%emt 00:00:02] [%clk 00:01:01]} Rd3+ {[%emt 00:00:34]
[%clk 00:00:33]} 35. Kg2 {[%emt 00:00:10] [%clk 00:01:01]} Rd2+ {[%emt 00:00:04]
[%clk 00:00:39]} 36. Kf3 {[%emt 00:00:39] [%clk 00:00:33]} Rxb2 {[%emt 00:00:06]
[%clk 00:00:42]} 37. Rxa6 {[%emt 00:00:03] [%clk 00:00:40]} b4 {[%emt 00:00:23]
[%clk 00:00:29]} 38. cxb4 {[%emt 00:00:04] [%clk 00:00:47]} Rxb4 {[%emt
00:00:11] [%clk 00:00:27]} 39. Ke4 {[%emt 00:00:36] [%clk 00:00:21]} c3+ {[%emt
00:00:18] [%clk 00:00:20]} 40. Kf5 {[%emt 00:00:01] [%clk 00:00:29]} Rc4 {[%emt
00:00:06] [%clk 00:00:24]} 41. Ra7+ {[%emt 00:00:08] [%clk 00:00:31]} Kg8 {[%emt
00:00:05] [%clk 00:00:28]} 42. Kxg5 {[%emt 00:00:24] [%clk 00:00:17]} Rc5+
{[%emt 00:00:19] [%clk 00:00:20]} 43. Kg6 {[%emt 00:00:07] [%clk 00:00:19]} Rc6+
{[%emt 00:00:07] [%clk 00:00:24]} 44. Kf5 {[%emt 00:00:07] [%clk 00:00:22]} Bd4
{[%emt 00:00:18] [%clk 00:00:16]} 45. Rd7 {[%emt 00:00:08] [%clk 00:00:23]} Be3
{[%emt 00:00:14] [%clk 00:00:14]} 46. Rc2 {[%emt 00:00:01] [%clk 00:00:32]} Rc4
{[%emt 00:00:08] [%clk 00:00:16]} 47. Rd3 {[%emt 00:00:08] [%clk 00:00:33]} Bd2
{[%emt 00:00:06] [%clk 00:00:20]} 48. Rdxd2 {[%emt 00:00:07] [%clk 00:00:37]}
cxd2 {[%emt 00:00:01] [%clk 00:00:28]} 49. Rxd2 {[%emt 00:00:02] [%clk
00:00:45]} Rxa4 {[%emt 00:00:01] [%clk 00:00:37]} 50. Rd5 {[%emt 00:00:07] [%clk
00:00:48]} Kf7 {[%emt 00:00:06] [%clk 00:00:41]} 51. h4 {[%emt 00:00:02] [%clk
00:00:57]} Ra1 {[%emt 00:00:04] [%clk 00:00:46]} 52. h5 {[%emt 00:00:04] [%clk
00:01:03]} Ra7 {[%emt 00:00:08] [%clk 00:00:49]} 53. h6 {[%emt 00:00:17] [%clk
00:00:55]} Kg8 {[%emt 00:00:01] [%clk 00:00:58]} 54. Kg6 {[%emt 00:00:11] [%clk
00:00:55]} Ra6+ {[%emt 00:00:02] [%clk 00:01:06]} 55. Kh5 {[%emt 00:00:01] [%clk
00:01:03]} Kh7 {[%emt 00:00:11] [%clk 00:01:06]} 56. g5 {[%emt 00:00:08] [%clk
00:01:04]} Ra8 {[%emt 00:00:02] [%clk 00:01:14]} 57. g6+ {[%emt 00:00:10] [%clk
00:01:03]} Kh8 {[%emt 00:00:22] [%clk 00:01:03]} 58. h7 {[%emt 00:00:29] [%clk
00:00:44]} Kg7 {[%emt 00:00:15] [%clk 00:00:57]} 59. Rd7+ {[%emt 00:00:02] [%clk
00:00:53]} Kh8 {[%emt 00:00:17] [%clk 00:00:50]} 60. Kh6 {[%emt 00:00:01] [%clk
00:01:01]} 1-0

[Site "Europe Echecs"]

[Event "Championnat d'Europe Rapide"]
[Date "2024.12.07"]
[White "Guliyev, Namig"]
[Black "Van Foreest, Jorden"]
[WhiteElo "2484"]
[BlackElo "2677"]
[Round "4.2"]
[Result "0-1"]
[TimeControl "900+10"]

1. e4 {[%clk 00:15:18]} e5 {[%emt 00:00:12] [%clk 00:15:07]} 2. Nf3 {[%emt
00:00:04] [%clk 00:15:25]} Nc6 {[%emt 00:00:02] [%clk 00:15:15]} 3. Bb5 {[%emt
00:00:03] [%clk 00:15:31]} a6 {[%emt 00:00:05] [%clk 00:15:20]} 4. Ba4 {[%emt
00:00:02] [%clk 00:15:39]} Nf6 {[%emt 00:00:02] [%clk 00:15:28]} 5. O-O {[%emt
00:00:57] [%clk 00:14:53]} Be7 {[%emt 00:00:04] [%clk 00:15:33]} 6. Re1 {[%emt
00:00:41] [%clk 00:14:23]} b5 {[%emt 00:00:02] [%clk 00:15:41]} 7. Bb3 {[%emt
00:00:03] [%clk 00:14:31]} O-O {[%emt 00:00:03] [%clk 00:15:47]} 8. d4 {[%emt
00:02:28] [%clk 00:12:13]} Nxd4 {[%emt 00:00:17] [%clk 00:15:41]} 9. Nxd4 {[%emt
00:00:03] [%clk 00:12:20]} exd4 {[%emt 00:00:02] [%clk 00:15:49]} 10. e5 {[%emt
00:00:01] [%clk 00:12:29]} Ne8 {[%emt 00:00:01] [%clk 00:15:58]} 11. Qxd4 {[%emt
00:00:03] [%clk 00:12:36]} d6 {[%emt 00:00:20] [%clk 00:15:47]} 12. c4 {[%emt
00:01:17] [%clk 00:11:30]} dxe5 {[%emt 00:00:04] [%clk 00:15:53]} 13. Qxe5
{[%emt 00:00:20] [%clk 00:11:20]} Bf6 {[%emt 00:00:10] [%clk 00:15:52]} 14. Qd5
{[%emt 00:00:29] [%clk 00:11:02]} Qxd5 {[%emt 00:01:58] [%clk 00:14:04]} 15.
cxd5 {[%emt 00:00:03] [%clk 00:11:09]} a5 {[%emt 00:01:28] [%clk 00:12:46]} 16.
Nc3 {[%emt 00:00:57] [%clk 00:10:21]} a4 {[%emt 00:00:08] [%clk 00:12:49]} 17.
Bc2 {[%emt 00:00:01] [%clk 00:10:30]} Nd6 {[%emt 00:01:16] [%clk 00:11:43]} 18.
Rb1 {[%emt 00:01:12] [%clk 00:09:28]} Bb7 {[%emt 00:00:43] [%clk 00:11:10]} 19.
Bf4 {[%emt 00:02:39] [%clk 00:06:59]} a3 {[%emt 00:00:22] [%clk 00:10:58]} 20.
Bxd6 {[%emt 00:00:38] [%clk 00:06:31]} cxd6 {[%emt 00:00:02] [%clk 00:11:06]}
21. Nxb5 {[%emt 00:00:02] [%clk 00:06:39]} axb2 {[%emt 00:00:05] [%clk
00:11:10]} 22. Nxd6 {[%emt 00:03:25] [%clk 00:03:25]} Bxd5 {[%emt 00:00:02]
[%clk 00:11:18]} 23. Be4 {[%emt 00:00:02] [%clk 00:03:33]} Bxa2 {[%emt 00:00:14]
[%clk 00:11:14]} 24. Rbd1 {[%emt 00:02:27] [%clk 00:01:16]} Rad8 {[%emt
00:01:39] [%clk 00:09:45]} 25. g3 {[%emt 00:00:34] [%clk 00:00:52]} b1=Q {[%emt
00:00:35] [%clk 00:09:20]} 0-1

[Site "Europe Echecs"]

[Event "Championnat d'Europe Rapide"]
[Date "2024.12.07"]
[White "Baidetskyi, Valentin"]
[Black "Deac, Bogdan-Daniel"]
[WhiteElo "2519"]
[BlackElo "2696"]
[Round "4.3"]
[Result "1/2-1/2"]
[TimeControl "900+10"]

1. e4 {[%emt 00:00:02] [%clk 00:15:18]} e5 {[%emt 00:00:02] [%clk 00:15:18]} 2.
Bc4 {[%emt 00:00:09] [%clk 00:15:19]} Nf6 {[%emt 00:00:09] [%clk 00:15:19]} 3.
d3 {[%emt 00:00:09] [%clk 00:15:21]} Nc6 {[%emt 00:00:09] [%clk 00:15:20]} 4.
Nf3 {[%emt 00:00:03] [%clk 00:15:28]} Bc5 {[%emt 00:00:08] [%clk 00:15:21]} 5.
Bg5 {[%emt 00:00:54] [%clk 00:14:44]} h6 {[%emt 00:00:12] [%clk 00:15:19]} 6.
Bh4 {[%emt 00:00:02] [%clk 00:14:52]} Be7 {[%emt 00:00:02] [%clk 00:15:27]} 7.
Bg3 {[%emt 00:00:03] [%clk 00:15:00]} d6 {[%emt 00:00:02] [%clk 00:15:34]} 8. a4
{[%emt 00:00:02] [%clk 00:15:09]} g6 {[%emt 00:00:10] [%clk 00:15:33]} 9. Nc3
{[%emt 00:00:21] [%clk 00:14:59]} O-O {[%emt 00:00:33] [%clk 00:15:09]} 10. h3
{[%emt 00:00:41] [%clk 00:14:29]} Be6 {[%emt 00:00:08] [%clk 00:15:11]} 11. O-O
{[%emt 00:00:31] [%clk 00:14:07]} Bxc4 {[%emt 00:00:22] [%clk 00:14:59]} 12.
dxc4 {[%emt 00:00:01] [%clk 00:14:15]} b6 {[%emt 00:00:03] [%clk 00:15:07]} 13.
Bh2 {[%emt 00:01:03] [%clk 00:13:23]} a5 {[%emt 00:00:53] [%clk 00:14:24]} 14.
Ne1 {[%emt 00:00:21] [%clk 00:13:11]} Kg7 {[%emt 00:00:48] [%clk 00:13:45]} 15.
Nd3 {[%emt 00:00:09] [%clk 00:13:14]} Nd7 {[%emt 00:00:56] [%clk 00:12:59]} 16.
f4 {[%emt 00:00:17] [%clk 00:13:07]} exf4 {[%emt 00:00:21] [%clk 00:12:48]} 17.
Bxf4 {[%emt 00:00:04] [%clk 00:13:13]} Bg5 {[%emt 00:00:48] [%clk 00:12:09]} 18.
Nd5 {[%emt 00:00:17] [%clk 00:13:06]} Nce5 {[%emt 00:02:21] [%clk 00:09:59]} 19.
b3 {[%emt 00:00:10] [%clk 00:13:06]} c6 {[%emt 00:00:53] [%clk 00:09:16]} 20.
Ne3 {[%emt 00:00:05] [%clk 00:13:11]} Qe7 {[%emt 00:00:28] [%clk 00:08:58]} 21.
Qe1 {[%emt 00:01:40] [%clk 00:11:40]} Kh7 {[%emt 00:04:48] [%clk 00:04:21]} 22.
Rd1 {[%emt 00:00:20] [%clk 00:11:31]} Nc5 {[%emt 00:01:06] [%clk 00:03:24]} 23.
Nxc5 {[%emt 00:01:23] [%clk 00:10:18]} dxc5 {[%emt 00:00:14] [%clk 00:03:20]}
24. Qg3 {[%emt 00:00:08] [%clk 00:10:20]} Rae8 {[%emt 00:01:26] [%clk 00:02:03]}
25. Bxg5 {[%emt 00:04:42] [%clk 00:05:49]} Qxg5 {[%emt 00:00:29] [%clk
00:01:44]} 26. Qxg5 {[%emt 00:00:04] [%clk 00:05:56]} hxg5 {[%clk 00:01:53]} 27.
Rd6 {[%emt 00:00:01] [%clk 00:06:05]} Rd8 {[%emt 00:01:23] [%clk 00:00:39]} 28.
Rfd1 {[%emt 00:00:02] [%clk 00:06:13]} Rxd6 {[%emt 00:00:02] [%clk 00:00:47]}
29. Rxd6 {[%emt 00:00:02] [%clk 00:06:22]} Re8 {[%emt 00:00:01] [%clk 00:00:54]}
30. Kf2 {[%emt 00:02:08] [%clk 00:04:25]} Kg7 {[%emt 00:00:02] [%clk 00:01:02]}
31. Ng4 {[%emt 00:00:12] [%clk 00:04:24]} Nxg4+ {[%emt 00:00:07] [%clk
00:01:05]} 32. hxg4 {[%emt 00:00:01] [%clk 00:04:32]} Re6 {[%emt 00:00:35] [%clk
00:00:40]} 33. Rxe6 {[%emt 00:00:03] [%clk 00:04:40]} fxe6 {[%emt 00:00:01]
[%clk 00:00:49]} 34. e5 {[%emt 00:00:01] [%clk 00:04:49]} 1/2-1/2

[Site "Europe Echecs"]